fUSD/lending_fUSD_20260108
["ID","MTS","AMOUNT","RATE_DAILY","PERIOD"]
[401079390,1767907844056,-1000.0,0.00017396,2]
[401079391,1767907844065,-150.0,0.00017399,2]
[401079392,1767907844075,-1000.0,0.000174,2]
[401079393,1767907844084,-272.2442752,0.000174,2]
[401079394,1767907844094,-1000.0,0.00017422,2]
[401079395,1767907844105,-618.73,0.00017427,2]
[401079396,1767907844115,-2129.0,0.0001743,2]
[401079397,1767907844124,-1000.0,0.00017438,2]
[401079398,1767907844133,-1000.0,0.00017465,2]
[401079399,1767907844142,-166.04276169,0.00017471,2]
[401079400,1767907844151,-258.31,0.00017472,2]
[401079401,1767907844161,-1000.0,0.0001748,2]
[401079402,1767907844170,-1000.0,0.0001748,2]
[401079403,1767907844179,-150.0,0.00017484,2]
[401079404,1767907844188,-1600.92502348,0.000175,2]
[401079405,1767907844199,-446.20279251,0.00017502,2]
[401079406,1767907844208,-1000.0,0.00017514,2]
[401079407,1767907844217,-150.0,0.00017526,2]
[401079408,1767907844226,-1000.0,0.00017527,2]
[401079409,1767907844236,-4391.8,0.00017534,2]
[401079410,1767907844245,-1042.30773041,0.00017534,2]
[401079411,1767907844254,-157.72323008,0.00017538,2]
[401079412,1767907844263,-282.08498443,0.00017542,2]
[401079413,1767907844272,-150.0,0.00017547,2]
[401079414,1767907844282,-1000.0,0.00017587,2]
[401079415,1767907844291,-1000.0,0.00017597,2]
[401079416,1767907844300,-1000.0,0.00017599,2]
[401079417,1767907844310,-1000.0,0.00017602,2]
[401079418,1767907844319,-150.0,0.00017605,2]
[401079419,1767907844328,-1000.0,0.00017608,2]
[401079420,1767907844337,-1000.0,0.00017633,2]
[401079421,1767907844347,-649.16,0.00017639,2]
[401079422,1767907844356,-15030.58394086,0.0001764,2]
[401079423,1767907844365,-1000.0,0.0001764,2]
[401079424,1767907844374,-151.0,0.00017647,2]
[401079425,1767907844383,-574.12855637,0.00017647,2]
[401079426,1767907844393,-151.0,0.00017647,2]
[401079427,1767907844403,-293.26916709,0.00017647,2]
[401079428,1767907844412,-373.07297731,0.00017647,2]
[401079429,1767907844422,-1000.0,0.00017664,2]
[401079430,1767907844431,-150.0,0.00017671,2]
[401079431,1767907844440,-1000.0,0.00017672,2]
[401079432,1767907844449,-150.0,0.00017679,2]
[401079433,1767907844458,-833.0,0.0001768,2]
[401079434,1767907844467,-162.0,0.0001768,2]
[401079435,1767907844476,-833.0,0.0001768,2]
[401079436,1767907844485,-162.0,0.0001768,2]
[401079437,1767907844494,-162.0,0.0001768,2]
[401079438,1767907844503,-833.0,0.0001768,2]
[401079439,1767907844512,-833.0,0.0001768,2]
[401079440,1767907844522,-833.0,0.0001768,2]
[401079441,1767907844532,-833.0,0.0001768,2]
[401079442,1767907844541,-1000.0,0.00017689,2]
[401079443,1767907844550,-1000.0,0.00017691,2]
[401079444,1767907844560,-1000.0,0.00017697,2]
[401079445,1767907844570,-4280.56502844,0.000177,2]
[401079446,1767907844579,-1000.0,0.000177,2]
[401079447,1767907844588,-628.5623616,0.000177,2]
[401079448,1767907844597,-150.0,0.00017705,2]
[401079449,1767907844606,-927.0,0.00017705,2]
[401079450,1767907844615,-1000.0,0.00017709,2]
[401079451,1767907844624,-150.0,0.00017709,2]
[401079452,1767907844634,-1000.0,0.00017711,2]
[401079453,1767907844643,-1000.0,0.0001773,2]
[401079454,1767907844652,-150.0,0.00017737,2]
[401079455,1767907844662,-1090.953,0.00017738,2]
[401079456,1767907844671,-150.0,0.0001774,2]
[401079457,1767907844680,-1000.0,0.0001774,2]
[401079458,1767907844690,-150.0,0.00017742,2]
[401079459,1767907844699,-1000.0,0.00017755,2]
[401079460,1767907844708,-1000.0,0.00017758,2]
[401079461,1767907844717,-1000.0,0.00017759,2]
[401079462,1767907844727,-1000.0,0.00017763,2]
[401079463,1767907844736,-1000.0,0.00017764,2]
[401079464,1767907844745,-1000.0,0.00017771,2]
[401079465,1767907844754,-1000.0,0.0001778,2]
[401079466,1767907844763,-1000.0,0.00017784,2]
[401079467,1767907844772,-1000.0,0.00017784,2]
[401079468,1767907844782,-1000.0,0.00017784,2]
[401079469,1767907844791,-1000.0,0.00017785,2]
[401079470,1767907844800,-286.0,0.00017786,2]
[401079471,1767907844809,-150.0,0.00017786,2]
[401079472,1767907844818,-1000.0,0.00017794,2]
[401079473,1767907844827,-500.0,0.00017794,2]
[401079474,1767907844836,-1000.0,0.00017795,2]
[401079475,1767907844846,-2000.0,0.000178,2]
[401079476,1767907844855,-1000.0,0.00017801,2]
[401079477,1767907844865,-1000.0,0.00017802,2]
[401079478,1767907844874,-1000.0,0.00017803,2]
[401079479,1767907844883,-4391.8,0.00017808,2]
[401079480,1767907844892,-1000.0,0.00017811,2]
[401079481,1767907844901,-150.0,0.00017811,2]
[401079482,1767907844911,-1000.0,0.00017814,2]
[401079483,1767907844924,-758.96088212,0.0001782,2]
[401079484,1767907844934,-1000.0,0.00017822,2]
[401079485,1767907844943,-1000.0,0.00017825,2]
[401079486,1767907844952,-2563.74337966,0.0001783,2]
[401079487,1767907844962,-1000.0,0.00017833,2]
[401079488,1767907844971,-6453.0,0.00017834,2]
[401079489,1767907844980,-927.0,0.00017834,2]
[401079490,1767907844990,-458.86980404,0.00017838,2]
[401079491,1767907844999,-648.06111517,0.00017838,2]
[401079492,1767907845008,-847.04791815,0.00017838,2]
[401079493,1767907845017,-1000.0,0.0001784,2]
[401079494,1767907845027,-993.92526434,0.00017843,2]
[401079495,1767907845036,-150.0,0.00017843,2]
[401079496,1767907845045,-150.0,0.00017848,2]
[401079497,1767907845055,-1000.0,0.0001785,2]
[401079498,1767907845064,-1000.0,0.00017852,2]
[401079499,1767907845074,-2000.0,0.00017855,2]
[401079500,1767907845083,-200.0,0.00017855,2]
[401079501,1767907845092,-200.0,0.00017856,2]
[401079503,1767907845102,-2000.0,0.00017856,2]
[401079504,1767907845111,-200.0,0.00017856,2]
[401079505,1767907845121,-200.0,0.00017856,2]
[401079506,1767907845130,-1000.0,0.0001786,2]
[401079507,1767907845139,-1000.0,0.00017864,2]
[401079508,1767907845148,-1000.0,0.00017865,2]
[401079509,1767907845157,-150.0,0.00017866,2]
[401079510,1767907845166,-150.0,0.00017868,2]
[401079511,1767907845175,-1000.0,0.00017888,2]
[401079512,1767907845185,-1000.0,0.00017894,2]
[401079513,1767907845194,-1000.0,0.00017895,2]
[401079514,1767907845205,-1000.0,0.00017897,2]
[401079515,1767907845215,-1000.0,0.00017898,2]
[401079516,1767907845224,-10000.0,0.000179,2]
[401079517,1767907845233,-174.89973452,0.000179,2]
[401079518,1767907845242,-25000.0,0.000179,3]
[401079519,1767907845252,-272.2442752,0.000179,2]
[401079521,1767907845261,-4478.91397772,0.000179,2]
[401079523,1767907845270,-306.94008536,0.000179,2]
[401079525,1767907845279,-26513.46810758,0.000179,2]
[401079527,1767907845288,-190.04272048,0.000179,3]
[401079529,1767907845297,-20561.13039999,0.000179,2]
[401079531,1767907845306,-211.88264941,0.000179,2]
[401079533,1767907845315,-25000.0,0.000179,3]
[401079535,1767907845324,-17327.0,0.000179,2]
[401079537,1767907845334,-1100.0,0.00017904,7]
[401079539,1767907845343,-3000.0,0.00017904,7]
[401079541,1767907845352,-150.0,0.00017905,2]
[401079543,1767907845361,-927.0,0.00017908,2]
[401079545,1767907845370,-1000.0,0.00017908,2]
[401079547,1767907845380,-1000.0,0.00017913,2]
[401079549,1767907845390,-1000.0,0.00017913,2]
[401079551,1767907845399,-1000.0,0.00017924,2]
[401079553,1767907845408,-1000.0,0.00017927,2]
[401079555,1767907845417,-1000.0,0.00017933,2]
[401079557,1767907845427,-1000.0,0.00017935,2]
[401079559,1767907845436,-332.0,0.00017936,2]
[401079561,1767907845445,-855.65,0.00017944,2]
[401079563,1767907845455,-8200.0,0.00017945,2]
[401079565,1767907845464,-1000.0,0.00017951,2]
[401079567,1767907845473,-1000.0,0.00017951,2]
[401079568,1767907845483,-927.0,0.00017956,2]
[401079569,1767907845492,-401.48234093,0.00017967,2]
[401079570,1767907845501,-1000.0,0.0001797,2]
[401079571,1767907845510,-500.0,0.0001797,2]
[401079572,1767907845520,-1000.0,0.0001797,2]
[401079573,1767907845529,-500.0,0.0001797,2]
[401079574,1767907845539,-1000.0,0.0001797,2]
[401079575,1767907845549,-1000.0,0.0001797,2]
[401079576,1767907845558,-500.0,0.0001797,2]
[401079577,1767907845567,-1000.0,0.0001797,2]
[401079578,1767907845577,-500.0,0.0001797,2]
[401079579,1767907845586,-500.0,0.0001797,2]
[401079580,1767907845595,-1000.0,0.0001797,2]
[401079581,1767907845604,-584.41347442,0.0001797,2]
[401079582,1767907845613,-1000.0,0.0001797,2]
[401079583,1767907845622,-1446.54474908,0.0001797,2]
[401079584,1767907845631,-1000.0,0.0001797,2]
[401079585,1767907845640,-500.0,0.0001797,2]
[401079586,1767907845650,-1000.0,0.0001797,2]
[401079587,1767907845659,-7567.0,0.00017973,2]
[401079588,1767907845668,-356.0,0.00017973,2]
[401079589,1767907845677,-504.24318867,0.00017973,2]
[401079590,1767907845686,-500.0,0.00017973,2]
[401079591,1767907845695,-150.0,0.00017973,2]
[401079592,1767907845707,-500.0,0.00017973,2]
[401079593,1767907845716,-500.0,0.00017973,2]
[401079594,1767907845726,-500.0,0.00017973,2]
[401079595,1767907845735,-500.0,0.00017973,2]
[401079596,1767907845744,-513.02244381,0.00017973,2]
[401079597,1767907845753,-500.17178809,0.00017973,2]
[401079598,1767907845763,-568.48476984,0.00017973,2]
[401079599,1767907845771,-500.0,0.00017973,2]
[401079600,1767907845780,-500.0,0.00017973,2]
[401079601,1767907845789,-500.0,0.00017973,2]
[401079602,1767907845799,-504.45710441,0.00017973,2]
[401079603,1767907845807,-160.89060159,0.00017973,2]
[401079604,1767907845816,-426.73386812,0.00017973,2]
[401079605,1767907845825,-159.904,0.00017973,2]
[401079606,1767907845834,-500.0,0.00017973,2]
[401079607,1767907845843,-500.0,0.00017973,2]
[401079608,1767907845852,-500.0,0.00017973,2]
[401079609,1767907845862,-500.0,0.00017973,2]
[401079610,1767907845872,-500.0,0.00017973,2]
[401079611,1767907845881,-385.16009683,0.00017973,2]
[401079612,1767907845890,-501.18870733,0.00017973,2]
[401079613,1767907845900,-160.81509317,0.00017973,2]
[401079614,1767907845910,-500.0,0.00017973,2]
[401079615,1767907845923,-500.0,0.00017973,2]
[401079616,1767907845933,-500.0,0.00017973,2]
[401079617,1767907845942,-500.0,0.00017973,2]
[401079618,1767907845952,-500.0,0.00017973,2]
[401079619,1767907845963,-1000.0,0.00017979,2]
[401079620,1767907845972,-1000.0,0.00017982,2]
[401079621,1767907845981,-150.0,0.0001799,2]
[401079622,1767907845991,-893.22555293,0.0001799,2]
[401079623,1767907846001,-893.22555293,0.0001799,2]
[401079624,1767907846010,-151.0,0.00017994,2]
[401079628,1767907846246,-500.0,0.00017996,2]
[401079629,1767907846256,-500.0,0.00017996,2]
[401079630,1767907846266,-459.26722753,0.00017996,2]
[401079631,1767907846275,-1000.0,0.00017996,2]
[401079632,1767907846284,-649.16,0.00017996,2]
[401079633,1767907846295,-649.16,0.00017996,2]
[401079634,1767907846304,-649.16,0.00017996,2]
[401079635,1767907846313,-649.16,0.00017996,2]
[401079636,1767907846323,-855.65,0.00017996,2]
[401079637,1767907846332,-855.65,0.00017996,2]
[401079638,1767907846341,-855.65,0.00017996,2]
[401079639,1767907846350,-692536.5984174,0.00017997,2]
[401079640,1767907846359,-197294.509703,0.00017997,2]
[401079641,1767907846368,-3500.0649166,0.00017997,2]
[401079642,1767907846378,-1302.9670119,0.00017997,2]
[401079643,1767907846388,-156.73208,0.00017997,2]
[401079644,1767907846397,-151.0,0.00017997,2]
[401079645,1767907846406,-151.0,0.00017997,2]
[401079646,1767907846416,-172.930412,0.00017997,2]
[401079647,1767907846425,-151.0,0.00017997,2]
[401079648,1767907846436,-151.0,0.00017997,2]
[401079649,1767907846445,-151.0,0.00017997,2]
[401079650,1767907846455,-151.0,0.00017997,2]
[401079651,1767907846466,-167.184503,0.00017997,2]
[401079652,1767907846475,-151.0,0.00017997,2]
[401079653,1767907846485,-151.0,0.00017997,2]
[401079654,1767907846494,-165.913293,0.00017997,2]
[401079655,1767907846503,-151.0,0.00017997,2]
[401079656,1767907846513,-195.755889,0.00017997,2]
[401079657,1767907846522,-195.755889,0.00017997,2]
[401079658,1767907846531,-151.0,0.00017997,2]
[401079659,1767907846540,-151.0,0.00017997,2]
[401079660,1767907846550,-151.0,0.00017997,2]
[401079661,1767907846560,-151.0,0.00017997,2]
[401079662,1767907846569,-51357.8817896,0.00017997,2]
[401079663,1767907846578,-196.054169,0.00017997,2]
[401079664,1767907846587,-196.054169,0.00017997,2]
[401079665,1767907846596,-196.054169,0.00017997,2]
[401079666,1767907846605,-196.054169,0.00017997,2]
[401079667,1767907846615,-218.808881,0.00017997,2]
[401079668,1767907846625,-218.808881,0.00017997,2]
[401079669,1767907846634,-151.0,0.00017997,2]
[401079670,1767907846644,-218.808881,0.00017997,2]
[401079671,1767907846653,-218.808881,0.00017997,2]
[401079672,1767907846665,-151.0,0.00017997,2]
[401079673,1767907846674,-151.0,0.00017997,2]
[401079674,1767907846684,-151.0,0.00017997,2]
[401079675,1767907846694,-151.0,0.00017997,2]
[401079676,1767907846703,-151.0,0.00017997,2]
[401079677,1767907846712,-151.0,0.00017997,2]
[401079678,1767907846721,-374.563037,0.00017997,2]
[401079679,1767907846730,-374.563037,0.00017997,2]
[401079680,1767907846739,-374.563037,0.00017997,2]
[401079681,1767907846749,-374.563037,0.00017997,2]
[401079682,1767907846758,-151.0,0.00017997,2]
[401079683,1767907846767,-233.29795827,0.00017999,2]
[401079684,1767907846776,-324.9765641,0.00017999,2]
[401079685,1767907846785,-150.0,0.00017999,2]
[401079686,1767907846794,-300.0,0.00017999,2]
[401079687,1767907846803,-300.0,0.00017999,2]
[401079688,1767907846812,-448.64136623,0.00017999,2]
[401079689,1767907846822,-1792.77089946,0.00017999,2]
[401079690,1767907846831,-300.0,0.00017999,2]
[401079691,1767907846840,-666.0,0.00017999,2]
[401079692,1767907846850,-500.0,0.00017999,2]
[401079693,1767907846859,-500.0,0.00017999,2]
[401079694,1767907846869,-500.0,0.00017999,2]
[401079695,1767907846878,-500.0,0.00017999,2]
[401079696,1767907846887,-500.0,0.00017999,2]
[401079697,1767907846897,-500.0,0.00017999,2]
[401079698,1767907846906,-500.0,0.00017999,2]
[401079699,1767907846920,-500.0,0.00017999,2]
[401079700,1767907846930,-500.0,0.00017999,2]
[401079701,1767907846940,-500.0,0.00017999,2]
[401079702,1767907846949,-500.0,0.00017999,2]
[401079703,1767907846959,-500.0,0.00017999,2]
[401079704,1767907846968,-500.0,0.00017999,2]
[401079705,1767907846978,-500.0,0.00017999,2]
[401079706,1767907846987,-367.0513734,0.00017999,2]
[401079707,1767907846996,-649.16,0.00017999,2]
[401079708,1767907847005,-649.16,0.00017999,2]
[401079709,1767907847014,-649.16,0.00017999,2]
[401079710,1767907847024,-649.16,0.00017999,2]
[401079711,1767907847033,-649.16,0.00017999,2]
[401079712,1767907847043,-649.16,0.00017999,2]
[401079713,1767907847053,-300.0,0.00017999,2]
[401079714,1767907847064,-649.16,0.00017999,2]
[401079715,1767907847074,-649.16,0.00017999,2]
[401079716,1767907847085,-649.16,0.00017999,2]
[401079717,1767907847095,-649.16,0.00017999,2]
[401079718,1767907847104,-649.3677512,0.00017999,2]
[401079719,1767907847114,-300.0,0.00017999,2]
[401079720,1767907847125,-300.0,0.00017999,2]
[401079721,1767907847135,-666.0,0.00017999,2]
[401079722,1767907847146,-300.0,0.00017999,2]
[401079723,1767907847155,-11518.53087549,0.00017999,2]
[401079724,1767907847166,-300.0,0.00017999,2]
[401079725,1767907847175,-666.0,0.00017999,2]
[401079726,1767907847184,-300.0,0.00017999,2]
[401079727,1767907847193,-666.0,0.00017999,2]
[401079728,1767907847203,-300.0,0.00017999,2]
[401079729,1767907847214,-855.65,0.00017999,2]
[401079730,1767907847223,-855.65,0.00017999,2]
[401079731,1767907847232,-855.65,0.00017999,2]
[401079732,1767907847242,-855.65,0.00017999,2]
[401079733,1767907847251,-855.65,0.00017999,2]
[401079734,1767907847261,-855.65,0.00017999,2]
[401079735,1767907847270,-855.65,0.00017999,2]
[401079736,1767907847280,-855.65,0.00017999,2]
[401079737,1767907847289,-855.65,0.00017999,2]
[401079738,1767907847299,-855.65,0.00017999,2]
[401079739,1767907847309,-855.70599333,0.00017999,2]
[401079740,1767907847319,-5970.77362135,0.00017999,2]
[401079741,1767907847328,-1000.0,0.00018,2]
[401079742,1767907847341,-836.47750939,0.00018,2]
[401079743,1767907847351,-1307422.32301922,0.00018,2]
[401079744,1767907847362,-1000.0,0.00018,2]
[401079745,1767907847372,-1000.0,0.00018,2]
[401079746,1767907847383,-776.56725191,0.00018,2]
[401079747,1767907847393,-1227264.55310812,0.00018,2]
[401079748,1767907849903,-979.88092702,0.00011075,2]
[401079749,1767907849913,-4950.3485623,0.00011075,2]
[401079750,1767907849927,-738.86836841,0.00011075,2]
[401079751,1767907849940,-283.74533768,0.00011075,2]
[401079752,1767907862458,39397.8007,0.00010976,2]
[401079754,1767907957511,298.4562,0.00010976,2]
[401079755,1767908215563,3788.4,8.173e-05,2]
[401079756,1767908215727,3788.4,8.586e-05,2]
[401079757,1767908215940,3788.4,9e-05,2]
[401079758,1767908216180,3788.4,9.413e-05,2]
[401079759,1767908216413,3788.4,9.826e-05,2]
[401079760,1767908216664,3788.4,0.00010239,2]
[401079761,1767908216903,3788.4,0.00010653,2]
[401079767,1767909031886,-3788.4,0.00011066,2]
[401079768,1767909031896,-250.0,0.00011071,2]
[401079769,1767909031907,-1000.0,0.00011076,2]
[401079770,1767909031916,-1200.0,0.00011478,2]
[401079771,1767909031926,-300.0,0.00011478,2]
[401079772,1767909031936,-1200.0,0.00011478,2]
[401079773,1767909031945,-3788.4,0.00011479,2]
[401079774,1767909031955,-3788.4,0.00011893,2]
[401079775,1767909031964,-250.0,0.00012173,2]
[401079776,1767909031973,-300.0,0.00012173,2]
[401079777,1767909031983,-324.9765641,0.00012202,2]
[401079778,1767909031992,-1314.55914087,0.00012203,2]
[401079779,1767909032003,-805.848,0.00012203,2]
[401079780,1767909032014,-23168.39157696,0.00012203,2]
[401079781,1767909032048,-600.11131002,0.00012203,2]
[401079782,1767909032126,-1119.94014192,0.00012203,2]
[401079783,1767909032137,-4879.82837852,0.00012203,2]
[401079784,1767909032190,-472.63809177,0.00012203,2]
[401079785,1767909032201,-4400.0939247,0.00012203,2]
[401079786,1767909032213,-702.53762416,0.00012203,2]
[401079787,1767909032245,-8108.35026846,0.00012203,2]
[401079788,1767909032265,-734.91789651,0.00012203,2]
[401079802,1767909037960,-232.11593242,0.00012202,2]
[401079804,1767909037969,-70.52645086,0.00012202,2]
[401079811,1767909038017,-130.41243411,0.00012202,2]
[401079812,1767909038026,-359.58756589,0.00012202,2]
[401079826,1767909040017,-156.94235941,0.00012201,2]
[401079827,1767909040027,-140.41243411,0.00012202,2]
[401079828,1767909040036,-331.59827073,0.00012202,2]
[401079829,1767909040046,-219.40915668,0.00012202,2]
[401079830,1767909040055,-500.0,0.00012202,2]
[401079831,1767909040064,-931.91277907,0.00012203,2]
[401079832,1767909040075,-6217.60000017,0.00012203,2]
[401079833,1767909040245,-946543.27086687,0.00012203,2]
[401079834,1767909040256,-150.0,0.00012301,2]
[401079835,1767909040266,-266.81,0.00012301,2]
[401079836,1767909040275,-3788.4,0.00012306,2]
[401079837,1767909040284,-420.0,0.00012607,2]
[401079838,1767909040295,-1680.0,0.00012626,2]
[401079839,1767909040303,-3788.4,0.00012719,2]
[401079840,1767909040312,-1783.62,0.00012893,2]
[401079841,1767909040321,-1850.77,0.00012893,2]
[401079842,1767909040331,-3788.4,0.00013132,2]
[401079843,1767909040340,-255.0,0.00013383,2]
[401079844,1767909040349,-3788.4,0.00013546,2]
[401079845,1767909040358,-151.0,0.0001369,2]
[401079846,1767909040368,-151.0,0.0001369,2]
[401079847,1767909040377,-151.0,0.0001369,2]
[401079848,1767909040386,-151.0,0.0001369,2]
[401079849,1767909040395,-290.63838597,0.0001369,2]
[401079850,1767909040405,-500.0,0.00013698,2]
[401079851,1767909040414,-500.0,0.00013698,2]
[401079852,1767909040423,-500.0,0.00013698,2]
[401079853,1767909040432,-500.0,0.00013698,2]
[401079854,1767909040442,-500.0,0.00013698,2]
[401079855,1767909040453,-500.0,0.00013698,2]
[401079856,1767909040462,-500.0,0.00013698,2]
[401079857,1767909040471,-500.0,0.00013698,2]
[401079858,1767909040480,-500.0,0.00013698,2]
[401079859,1767909040490,-587.0,0.00013847,2]
[401079860,1767909040499,-1000.0,0.00013869,2]
[401079861,1767909040508,-2351.0,0.00013889,2]
[401079862,1767909040518,-1000.0,0.00013919,2]
[401079863,1767909040527,-3788.4,0.00013959,2]
[401079864,1767909040537,-150.0,0.00013995,2]
[401079865,1767909040546,-8437.59,0.00014001,2]
[401079866,1767909040555,-35229.56,0.0001409,2]
[401079867,1767909040563,-662.64,0.00014119,2]
[401079868,1767909040572,-3788.4,0.00014372,2]
[401079869,1767909040585,-433.0,0.00014564,2]
[401079870,1767909040595,-250.0,0.00014622,2]
[401079871,1767909040605,-1949.15,0.0001467,2]
[401079872,1767909040614,-200.0,0.00014689,2]
[401079873,1767909040625,-504.82287623,0.00014763,2]
[401079874,1767909040635,-165.71915277,0.00014763,2]
[401079875,1767909040645,-500.0,0.00014763,2]
[401079876,1767909040654,-500.0,0.00014763,2]
[401079877,1767909040664,-500.0,0.00014763,2]
[401079878,1767909040673,-446.20279251,0.00014763,2]
[401079879,1767909040682,-1000.0,0.00014778,2]
[401079880,1767909040690,-3788.4,0.00014786,2]
[401079881,1767909040699,-166.66,0.00014865,2]
[401079882,1767909040712,-500.0,0.00014866,2]
[401079883,1767909040722,-151.0,0.00014937,2]
[401079884,1767909040732,-151.0,0.00014937,2]
[401079885,1767909040742,-1000.0,0.00015134,2]
[401079886,1767909040751,-993.92526434,0.0001516,2]
[401079887,1767909040761,-3788.4,0.00015199,2]
[401079888,1767909040770,-823.0,0.00015209,2]
[401079889,1767909040779,-3292.0,0.00015278,2]
[401079890,1767909040788,-1000.0,0.0001531,2]
[401079891,1767909040798,-1000.0,0.0001531,2]
[401079892,1767909040809,-166.66,0.00015355,2]
[401079893,1767909040820,-6807.16,0.00015386,2]
[401079894,1767909040830,-1000.0,0.00015461,2]
[401079895,1767909040840,-3788.4,0.00015612,2]
[401079896,1767909040851,-1000.0,0.00015828,2]
[401079897,1767909040860,-1000.0,0.00015834,2]
[401079898,1767909040870,-736.0,0.00015843,2]
[401079899,1767909040881,-166.66,0.00015846,2]
[401079900,1767909040892,-1000.0,0.00015858,2]
[401079901,1767909040902,-1000.0,0.00015858,2]
[401079902,1767909040915,-1000.0,0.00015901,2]
[401079903,1767909040925,-1000.0,0.00015964,2]
[401079904,1767909040935,-5130.57151643,0.00016,2]
[401079905,1767909040944,-1000.0,0.00016009,2]
[401079906,1767909040953,-1852.42,0.00016025,2]
[401079907,1767909040962,-3788.4,0.00016025,2]
[401079908,1767909040971,-323.67,0.00016065,2]
[401079909,1767909040980,-7747.65,0.00016116,2]
[401079910,1767909040989,-1000.0,0.00016159,2]
[401079911,1767909040998,-1000.0,0.00016233,2]
[401079912,1767909041007,-1000.0,0.00016301,2]
[401079913,1767909041016,-166.66,0.00016337,2]
[401079914,1767909041025,-4112.22608007,0.00016338,2]
[401079915,1767909041035,-2500.0,0.00016338,2]
[401079916,1767909041043,-1000.0,0.00016353,2]
[401079917,1767909041053,-157.72323008,0.00016369,2]
[401079918,1767909041062,-833.0,0.000164,2]
[401079919,1767909041071,-833.0,0.000164,2]
[401079920,1767909041080,-162.0,0.000164,2]
[401079921,1767909041089,-833.0,0.000164,2]
[401079922,1767909041098,-833.0,0.000164,2]
[401079923,1767909041107,-595.48370195,0.00016428,2]
[401079924,1767909041116,-500.0,0.00016437,2]
[401079925,1767909041124,-500.0,0.00016437,2]
[401079926,1767909041133,-500.0,0.00016437,2]
[401079927,1767909041143,-570.43,0.00016437,2]
[401079928,1767909041155,-3293.8,0.00016438,2]
[401079929,1767909041165,-800.0,0.00016438,2]
[401079930,1767909041174,-1000.0,0.00016464,2]
[401079931,1767909041184,-1000.0,0.00016497,2]
[401079932,1767909041194,-4112.22607999,0.00016512,2]
[401079933,1767909041204,-500.0,0.00016547,2]
[401079934,1767909041214,-500.0,0.00016547,2]
[401079935,1767909041224,-500.0,0.00016602,2]
[401079936,1767909041233,-500.0,0.00016602,2]
[401079937,1767909041243,-1000.0,0.00016625,2]
[401079938,1767909041253,-1000.0,0.00016634,2]
[401079939,1767909041264,-1000.0,0.00016635,2]
[401079940,1767909041273,-1000.0,0.00016649,2]
[401079941,1767909041283,-500.0,0.00016657,2]
[401079942,1767909041292,-500.0,0.00016657,2]
[401079943,1767909041302,-166.04276169,0.00016667,2]
[401079944,1767909041314,-1000.0,0.0001668,2]
[401079945,1767909041327,-4112.22607999,0.00016685,2]
[401079946,1767909041336,-1000.0,0.00016695,2]
[401079947,1767909041346,-1152.0,0.00016705,2]
[401079948,1767909041357,-500.0,0.00016711,2]
[401079949,1767909041366,-150.0,0.00016711,2]
[401079950,1767909041376,-3293.8,0.00016712,2]
[401079951,1767909041385,-165.16,0.00016712,2]
[401079952,1767909041395,-162.0,0.0001672,2]
[401079953,1767909041404,-833.0,0.0001672,2]
[401079954,1767909041414,-162.0,0.0001672,2]
[401079955,1767909041424,-833.0,0.0001672,2]
[401079956,1767909041434,-1000.0,0.0001674,2]